bitfinex-derivatives/quotes_SOLF0:USTF0_20241217
["timestamp","ask_amount","ask_price","bid_price","bid_amount"]
[1734451026307,23.82164105,221.05,220.9,1.5926]
[1734451026515,0.6764366,221.04,220.94,3.2]
[1734451026708,2.1599366,221.04,220.94,3.2]
[1734451026908,0.6764366,221.03,220.94,3.2]
[1734451027208,1.4835,221.04,220.94,3.2]
[1734451027408,2.2627,220.96,220.94,3.2]
[1734451029105,2.2628,220.95,220.94,3.2]
[1734451030306,2.2626,220.97,220.94,3.2]
[1734451030514,1.4835,221.04,220.94,3.2]
[1734451030714,0.67643614,221.03,220.94,3.2]
[1734451030913,2.2628,220.95,220.94,3.2]
[1734451031710,20.77264105,221.02,220.92,3.2]
[1734451032014,0.67654074,221.01,220.9,3.2]
[1734451032413,0.67654074,221.0,220.9,3.2]
[1734451032606,0.67654074,220.99,220.9,3.2]
[1734451032811,2.2627,220.97,220.91,2.2632]
[1734451033611,2.2627,220.97,220.92,2.2631]
[1734451034210,2.2624,221.0,220.94,2.2629]
[1734451034407,20.77264105,221.12,220.91,20.77264105]
[1734451034613,0.67634461,221.06,220.91,20.77264105]
[1734451035510,0.67634461,221.06,220.92,3.2]
[1734451035819,2.23284461,221.06,220.92,3.2]
[1734451036019,2.2622,221.01,220.96,2.2627]
[1734451036917,2.2623,221.0,220.96,2.2627]
[1734451037311,2.2623,221.0,220.95,2.2628]
[1734451037512,2.2623,221.0,220.93,20.77264105]
[1734451037721,22.32914105,221.15,220.97,20.77264105]
[1734451038019,0.67624231,221.14,220.99,2.2624]
[1734451039220,2.2618,221.06,220.99,2.2624]
[1734451039617,5.54095783,221.12,220.99,2.2624]
[1734451039824,0.67612544,221.11,220.99,2.2624]
[1734451040120,0.67612553,221.1,220.99,2.2624]
[1734451040316,0.67612553,221.11,220.99,2.2624]
[1734451040525,5.54095783,221.12,220.98,6.2745]
[1734451040526,0.67612258,221.1,221.0,3.2]
[1734451040818,0.67612258,221.09,221.0,3.2]
[1734451041124,2.2619,221.05,221.0,3.2]
[1734451041317,5.54095783,221.12,221.01,3.2]
[1734451041527,0.67613168,221.11,221.01,3.2]
[1734451042224,0.67613168,221.11,221.01,16.17157177]
[1734451042418,2.2618,221.05,221.01,16.17157177]
[1734451042814,2.2615,221.08,221.04,12.97157177]
[1734451043019,12.97157177,221.2,221.04,12.97157177]
[1734451043316,0.67598756,221.19,221.04,12.97157177]
[1734451044115,12.97157177,221.14,221.05,3.16]
[1734451044418,12.97157177,221.14,221.04,3.16]
[1734451044419,0.67598756,221.13,221.04,3.16]
[1734451044624,2.2618,221.05,221.04,3.16]
[1734451045024,2.2613,221.1,221.04,3.16]
[1734451045322,12.97157177,221.11,220.99,12.97157177]
[1734451045519,0.67609853,221.1,221.0,3.16]
[1734451046024,0.67609853,221.1,220.98,3.0745]
[1734451046220,0.67609853,221.1,220.99,3.16]
[1734451046720,12.97157177,221.11,220.99,3.16]
[1734451046721,0.6761972,221.09,220.99,3.16]
[1734451046923,2.2623,221.01,220.99,3.16]
[1734451047122,12.97157177,221.11,220.99,3.16]
[1734451047322,0.67619347,221.1,220.99,3.16]
[1734451047719,2.2622,221.01,220.99,3.16]
[1734451048324,2.2623,221.0,220.99,3.16]
[1734451049037,12.97157177,221.11,220.99,3.16]
[1734451049242,0.67620532,221.1,220.99,3.16]
[1734451049433,12.97157177,221.11,220.99,3.16]
[1734451049631,2.2616,221.07,220.99,3.16]
[1734451049835,12.97157177,221.12,220.99,3.16]
[1734451050032,0.67611891,221.11,220.99,3.16]
[1734451050235,0.67611891,221.11,220.98,5.337]
[1734451050541,0.67611891,221.11,220.99,5.4223]
[1734451051135,0.67611891,221.11,220.99,3.16]
[1734451051736,2.2619,221.04,220.99,5.4224]
[1734451051951,12.97157177,221.12,220.99,3.16]
[1734451052141,0.67613673,221.11,220.99,3.16]
[1734451052341,12.97157177,221.12,221.0,12.97157177]
[1734451052539,0.67613652,221.11,221.0,12.97157177]
[1734451052848,12.97157177,221.15,221.0,12.97157177]
[1734451053141,0.67610634,221.14,221.03,12.97157177]
[1734451053537,2.2615,221.08,221.03,15.23347177]
[1734451053938,4.5197,221.24,221.03,12.97157177]
[1734451054133,4.5197,221.24,221.06,12.97157177]
[1734451054134,12.97157177,221.2,221.06,12.97157177]
[1734451054335,4.5197,221.24,221.07,3.16]
[1734451054336,6.22748857,221.19,221.07,3.16]
[1734451054538,0.67607656,221.18,221.07,3.16]
[1734451054740,19.99063433,221.25,221.12,12.97157177]
[1734451055037,19.99063433,221.25,221.08,2.957]
[1734451055038,0.67581211,221.24,221.15,12.97157177]
[1734451055242,0.67581211,221.23,221.15,12.97157177]
[1734451055544,0.66888,221.27,221.15,12.97157177]
[1734451055742,0.67568269,221.26,221.15,12.97157177]
[1734451056245,0.66888,221.27,221.15,12.97157177]
[1734451056441,0.67567941,221.25,221.15,12.97157177]
[1734451056743,2.2603,221.2,221.15,12.97157177]
[1734451056935,0.66888,221.27,221.15,12.97157177]
[1734451057445,5.46397537,221.26,221.15,12.97157177]
[1734451057641,13.64717622,221.25,221.16,3.16]
[1734451057939,2.2602,221.21,221.13,3.16]
[1734451058144,12.97157177,221.25,221.13,3.16]
[1734451058548,2.2608,221.15,221.13,3.16]
[1734451058737,2.2608,221.15,221.12,12.97157177]
[1734451058738,12.97157177,221.22,221.12,3.16]
[1734451058939,12.97157177,221.25,221.12,16.13157177]
[1734451059140,2.2605,221.18,221.12,18.39257177]
[1734451059340,2.2605,221.18,221.12,16.13157177]
[1734451059537,5.46397537,221.26,221.12,16.13157177]
[1734451059740,0.67559581,221.25,221.18,12.97157177]
[1734451059938,0.66888,221.27,221.19,3.16]
[1734451060338,0.66888,221.27,221.21,12.97157177]
[1734451060850,2.2596,221.26,221.21,12.97157177]
[1734451061140,12.97157177,221.36,221.21,12.97157177]
[1734451061347,6.07405043,221.35,221.21,12.97157177]
[1734451061647,0.67540729,221.34,221.21,12.97157177]
[1734451061844,2.2594,221.28,221.23,2.2599]
[1734451062343,2.2594,221.28,221.24,12.97157177]
[1734451062548,2.2594,221.28,221.25,3.16]
[1734451062746,5.39864314,221.35,221.25,3.16]
[1734451063047,1.4884,221.37,221.25,3.16]
[1734451063245,0.675293,221.36,221.3,12.97157177]
[1734451063440,2.2591,221.32,221.31,3.16]
[1734451063645,5.36607869,221.45,221.31,3.16]
[1734451063848,0.67504044,221.44,221.33,12.97157177]
[1734451064044,0.99292,221.37,221.33,12.97157177]
[1734451064343,12.97157177,221.47,221.33,12.97157177]
[1734451064548,0.67501988,221.46,221.36,12.97157177]
[1734451064755,0.67501988,221.45,221.37,3.16]
[1734451065052,0.67501988,221.44,221.37,3.16]
[1734451065346,5.32573907,221.47,221.37,3.16]
[1734451065545,0.67495639,221.46,221.37,3.16]
[1734451065844,248.0607863,221.64,221.39,12.97157177]
[1734451066051,20.68140676,221.57,221.39,20.68140676]
[1734451066348,8.41380748,221.63,221.35,20.68140676]
[1734451066349,2.2583,221.4,221.35,20.68140676]
[1734451066551,26.0125703,221.53,221.36,3.16]
[1734451066752,5.25377549,221.52,221.36,3.16]
[1734451066954,0.67487549,221.51,221.37,3.16]
[1734451067450,2.2579,221.43,221.37,3.16]
[1734451067951,2.2575,221.47,221.38,3.16]
[1734451068154,4.5789,221.52,221.38,3.16]
[1734451068445,20.68140676,221.49,221.32,1.5522]
[1734451068650,0.67483139,221.48,221.33,3.16]
[1734451068851,3.83483139,221.48,221.33,3.16]
[1734451069054,0.67483139,221.47,221.33,3.16]
[1734451069249,0.67483139,221.48,221.33,3.16]
[1734451069453,20.68140676,221.49,221.33,3.16]
[1734451069754,2.2585,221.37,221.33,3.16]
[1734451069949,20.68140676,221.49,221.33,3.16]
[1734451070153,0.67491839,221.48,221.33,3.16]
[1734451070351,2.2586,221.37,221.33,3.16]
[1734451070554,3.16,221.48,221.31,22.16670676]
[1734451070753,0.67495769,221.47,221.32,3.16]
[1734451072352,0.67495769,221.47,221.33,2.2589]
[1734451072553,20.68140676,221.49,221.33,2.2589]
[1734451072754,0.6748866,221.48,221.33,2.2589]
[1734451072950,4.5789,221.52,221.35,20.68140676]
[1734451073156,0.67486931,221.51,221.35,20.68140676]
[1734451073956,0.67486931,221.51,221.36,3.16]
[1734451074252,2.2583,221.39,221.36,3.16]
[1734451074858,2.2585,221.37,221.36,3.16]
[1734451075062,4.5789,221.52,221.36,3.16]
[1734451075353,0.67487115,221.51,221.36,3.16]
[1734451076764,0.67487115,221.51,221.39,20.68140676]
[1734451076957,0.67487115,221.5,221.39,20.68140676]
[1734451077156,5.33116354,221.53,221.39,20.68140676]
[1734451077357,0.67483735,221.52,221.39,20.68140676]
[1734451078663,2.2577,221.45,221.39,22.93970676]
[1734451078963,5.33116354,221.53,221.37,1.5004]
[1734451079163,0.67474456,221.52,221.37,22.18180676]
[1734451079760,5.33116354,221.53,221.37,22.18180676]
[1734451080058,0.67473663,221.52,221.41,20.68140676]
[1734451080259,5.33116354,221.53,221.42,3.16]
[1734451080465,2.2575,221.47,221.42,3.16]
[1734451080758,5.33116354,221.53,221.42,3.16]
[1734451080964,2.2578,221.45,221.42,3.16]
[1734451081369,20.68140676,221.5,221.31,5.32085706]
[1734451081562,20.68140676,221.45,221.31,5.32085706]
[1734451081862,23.84140676,221.45,221.31,5.32085706]
[1734451082066,2.259,221.33,221.27,27.64120676]
[1734451082461,3.16,221.43,221.27,25.38170676]
[1734451082665,2.2591,221.31,221.27,25.38170676]
[1734451082863,3.16,221.43,221.27,30.70800069]
[1734451083064,2.2582,221.41,221.32,2.259]
[1734451083268,3.1493,221.44,221.33,3.16]
[1734451084262,2.2586,221.36,221.33,3.16]
[1734451084465,3.1493,221.44,221.33,3.16]
[1734451085071,3.1493,221.44,221.28,1.5701]
[1734451085072,3.1493,221.44,221.31,3.16]
[1734451085366,3.1493,221.44,221.3,3.16]
[1734451085568,20.68140676,221.42,221.27,1.5403]
[1734451085769,3.16,221.41,221.27,1.5403]
[1734451085963,3.16,221.41,221.24,3.16]
[1734451086166,2.2589,221.33,221.2,3.16]
[1734451086370,3.16,221.34,221.17,20.68140676]
[1734451086668,3.16,221.34,221.18,3.16]
[1734451086669,2.2601,221.22,221.18,3.16]
[1734451086968,1.5704,221.32,221.18,3.16]
[1734451087161,1.5704,221.32,221.17,23.84140676]
[1734451087365,1.5704,221.32,221.17,20.68140676]
[1734451087767,2.2604,221.19,221.17,20.68140676]
[1734451087970,2.2604,221.19,221.16,15.89531744]
[1734451089863,3.16,221.29,221.16,15.89531744]
[1734451090169,2.2605,221.18,221.16,15.89531744]
[1734451090368,3.16,221.29,221.16,15.89531744]
[1734451090565,2.2604,221.19,221.16,15.89531744]
[1734451090768,3.16,221.29,221.16,14.44551744]
[1734451090967,6.87496026,221.32,221.19,12.95411744]
[1734451091272,12.95411744,221.36,221.22,15.21411744]
[1734451091466,12.95411744,221.36,221.23,3.16]
[1734451091672,2.2596,221.26,221.23,3.16]
[1734451093367,12.95411744,221.4,221.25,12.95411744]
[1734451093569,5.44156865,221.38,221.25,12.95411744]
[1734451094065,5.44156865,221.38,221.28,12.95411744]
[1734451094270,5.44156865,221.38,221.29,4.7007]
[1734451094466,2.2582,221.4,221.31,2.2591]
[1734451094669,12.95411744,221.44,221.29,4.7007]
[1734451094867,0.67498069,221.43,221.29,4.7007]
[1734451095069,12.95411744,221.44,221.29,4.7007]
[1734451095269,2.2582,221.4,221.3,2.2592]
[1734451095471,12.95411744,221.44,221.3,2.2592]
[1734451095668,5.46435943,221.43,221.29,4.7007]
[1734451095972,15.97171744,221.47,221.34,12.95411744]
[1734451096172,14.51111744,221.47,221.35,3.16]
[1734451096670,2.2581,221.41,221.35,3.16]
[1734451097273,14.51111744,221.47,221.35,3.16]
[1734451097779,310.0759829,221.69,221.4,12.95411744]
[1734451098070,0.67466634,221.54,221.41,4.6444]
[1734451099065,1.545,221.62,221.44,20.67629446]
[1734451099267,0.67451814,221.61,221.44,20.67629446]
[1734451099468,22.22129446,221.62,221.44,20.67629446]
[1734451099672,5.38551929,221.59,221.44,20.67629446]
[1734451100273,5.38551929,221.59,221.48,2.2573]
[1734451100473,5.38551929,221.59,221.49,3.16]
[1734451100774,2.2568,221.54,221.49,3.16]
[1734451101371,5.32033511,221.61,221.49,3.16]
[1734451101572,0.6744528,221.6,221.44,20.67629446]
[1734451101874,2.2568,221.55,221.45,3.16]
[1734451102077,5.32033511,221.61,221.45,3.16]
[1734451102272,0.67445584,221.6,221.45,3.16]
[1734451102474,2.2568,221.54,221.47,2.2575]
[1734451102773,5.32033511,221.61,221.45,3.16]
[1734451103074,0.67449739,221.6,221.45,3.16]
[1734451103470,20.67629446,221.58,221.45,3.16]
[1734451103771,2.23159739,221.57,221.45,3.16]
[1734451103971,0.67449739,221.56,221.45,3.16]
[1734451104277,2.2575,221.47,221.45,3.16]
[1734451104671,2.2574,221.48,221.45,3.16]
[1734451104874,20.67629446,221.54,221.45,3.16]
[1734451105174,1.5571,221.57,221.34,1.4595]
[1734451105175,3.83457488,221.53,221.34,1.4595]
[1734451105372,0.67457488,221.52,221.38,3.16]
[1734451105670,3.16,221.53,221.38,3.16]
[1734451105870,22.19409446,221.51,221.38,3.16]
[1734451106766,0.6746709,221.5,221.38,3.16]
[1734451106969,22.19409446,221.51,221.38,3.16]
[1734451107267,2.2575,221.47,221.39,5.4183]
[1734451107468,22.19409446,221.51,221.39,5.4183]
[1734451107669,2.2577,221.45,221.39,3.16]
[1734451108371,2.2578,221.44,221.39,3.16]
[1734451108571,1.5178,221.51,221.39,3.16]
[1734451108975,1.5178,221.51,221.4,4.69295282]
[1734451109271,1.5571,221.57,221.42,20.67629446]
[1734451109472,0.67443414,221.56,221.42,20.67629446]
[1734451111373,0.67443414,221.56,221.35,5.34110628]
[1734451111674,21.35073608,221.55,221.36,7.84900682]
[1734451111865,0.67444162,221.54,221.37,4.68900682]
[1734451112070,2.2579,221.43,221.36,3.16]
[1734451112268,20.67629446,221.51,221.37,4.69156044]
[1734451112466,0.67464829,221.5,221.36,3.16]
[1734451112675,1.5464,221.5,221.36,3.16]
[1734451112977,1.5951,221.49,221.36,3.16]
[1734451113176,2.2579,221.43,221.37,2.2585]
[1734451113374,2.2579,221.43,221.38,3.16]
[1734451113677,1.5951,221.49,221.38,3.16]
[1734451114173,2.2583,221.4,221.38,3.16]
[1734451114671,2.2583,221.4,221.35,3.16]
[1734451115473,2.2583,221.39,221.35,3.16]
[1734451116572,2.2584,221.38,221.35,3.16]
[1734451116774,27.69113442,221.49,221.35,3.16]
[1734451117172,20.67629446,221.45,221.29,2.2593]
[1734451117368,3.16,221.44,221.29,2.2593]
[1734451117568,3.16,221.44,221.29,3.16]
[1734451117776,20.67629446,221.41,221.29,3.16]
[1734451118173,3.16,221.44,221.29,5.4193]
[1734451118377,0.67496477,221.4,221.29,5.4193]
[1734451118769,0.67496477,221.43,221.29,5.4193]
[1734451118975,2.2586,221.36,221.29,3.16]
[1734451119279,3.16,221.44,221.29,3.16]
[1734451119473,0.67495221,221.43,221.29,3.16]
[1734451119675,0.67495484,221.42,221.29,3.16]
[1734451119876,0.67495484,221.41,221.29,3.16]
[1734451120078,0.67495484,221.4,221.29,3.16]
[1734451120379,0.67495484,221.39,221.29,3.16]
[1734451120581,2.21955484,221.38,221.29,3.16]
[1734451120780,2.259,221.32,221.29,3.16]
[1734451120973,2.259,221.32,221.27,5.55676794]
[1734451121179,1.5446,221.38,221.26,2.2596]
[1734451121378,21.35130386,221.37,221.19,5.48191106]
[1734451121572,21.35130386,221.37,221.19,3.16]
[1734451121573,20.67629446,221.33,221.19,3.16]
[1734451121879,0.6750094,221.32,221.19,3.16]
[1734451122082,3.8350094,221.32,221.19,3.16]
[1734451122271,0.6750094,221.31,221.19,3.16]
[1734451122971,2.2602,221.21,221.19,3.16]
[1734451123170,1.5673,221.31,221.19,3.16]
[1734451123370,0.675395,221.3,221.14,2.2608]
[1734451123581,0.675395,221.3,221.15,8.45251877]
[1734451123783,0.675395,221.3,221.15,5.29251877]
[1734451123971,0.675395,221.3,221.16,3.16]
[1734451124172,20.67629446,221.29,221.16,3.16]
[1734451124375,0.675395,221.28,221.16,3.16]
[1734451124881,0.675395,221.28,221.16,5.4206]
[1734451125276,0.675395,221.28,221.16,3.16]
[1734451125579,2.2599,221.24,221.16,26.09689446]
[1734451125777,1.5673,221.31,221.16,23.83629446]
[1734451126082,0.67526011,221.3,221.16,23.83629446]
[1734451126280,1.5673,221.31,221.16,23.83629446]
[1734451126475,2.2598,221.25,221.18,2.2604]
[1734451126680,1.5673,221.31,221.16,23.83629446]
[1734451126981,1.5673,221.31,221.19,2.2603]
[1734451127773,2.2598,221.24,221.19,2.2603]
[1734451128182,20.67629446,221.28,221.15,3.16]
[1734451128675,1.4771,221.27,221.15,3.16]
[1734451128979,1.5673,221.31,221.18,20.67629446]
[1734451129673,2.2597,221.26,221.18,20.67629446]
[1734451130580,2.2597,221.26,221.21,2.2601]
[1734451130783,2.2597,221.26,221.22,3.16]
[1734451131982,2.2597,221.26,221.22,4.6973]
[1734451132177,22.26839446,221.36,221.22,4.6973]
[1734451132382,0.67522533,221.35,221.22,1.5373]
[1734451132783,2.2599,221.23,221.22,1.5373]
[1734451133481,22.26839446,221.36,221.22,1.5373]
[1734451133686,0.67519473,221.35,221.22,22.21359446]
[1734451134188,1.5921,221.36,221.27,2.2595]
[1734451134389,1.5921,221.36,221.28,3.16]
[1734451135184,2.2591,221.32,221.28,3.16]
[1734451135690,1.5921,221.36,221.28,3.16]
[1734451135985,2.2593,221.29,221.28,3.16]
[1734451141382,22.12489446,221.4,221.28,3.16]
[1734451141590,0.67503288,221.39,221.28,3.16]
[1734451141897,20.67629446,221.36,221.26,3.16]
[1734451142090,2.2595,221.28,221.26,3.16]
[1734451142590,2.2595,221.27,221.26,3.16]
[1734451142793,2.2595,221.27,221.22,1.5373]
[1734451143093,62.02888338,221.23,220.84,20.67629446]
[1734451143285,20.67629446,221.04,220.89,3.16]
[1734451143483,20.67629446,221.04,220.9,4.68935618]
[1734451143684,20.67629446,221.04,220.91,4.68935618]
[1734451143884,22.93859446,221.0,220.92,6.95245618]
[1734451144085,4.6327,221.09,220.91,3.16]
[1734451144086,20.67629446,220.97,220.91,3.16]
[1734451144289,20.67629446,220.97,220.9,3.16]
[1734451144894,20.67629446,220.93,220.86,3.16]
[1734451145092,20.67629446,220.93,220.66,72.37629446]
[1734451145093,20.67629446,220.89,220.71,20.67629446]
[1734451145289,20.67629446,220.89,220.72,3.16]
[1734451146096,20.67629446,220.89,220.71,20.67629446]
[1734451146295,20.67629446,220.89,220.72,3.16]
[1734451146795,2.2637,220.87,220.76,2.2647]
[1734451146990,20.67629446,220.85,220.68,51.72]
[1734451147394,20.67629446,220.85,220.69,3.16]
[1734451147697,20.67629446,220.81,220.69,3.16]
[1734451147897,20.67629446,220.77,220.69,3.16]
[1734451148798,2.265,220.74,220.69,3.16]
[1734451148997,20.67629446,220.77,220.66,3.16]
[1734451149196,13.59,220.76,220.31,20.67629446]
[1734451149400,20.67629446,220.64,220.44,20.67629446]
[1734451149702,3.0975,220.76,220.54,20.67629446]
[1734451149892,3.0975,220.76,220.55,3.16]
[1734451150094,20.67629446,220.73,220.6,2.2663]
[1734451150299,3.0975,220.76,220.5,20.67629446]
[1734451150300,20.67629446,220.69,220.5,20.67629446]
[1734451150500,20.67629446,220.69,220.51,54.94]
[1734451150700,2.2656,220.68,220.55,2.2669]
[1734451150907,2.2656,220.68,220.52,3.16]
[1734451151309,20.67629446,220.69,220.52,3.16]
[1734451151710,20.67629446,220.69,220.52,2.2671]
[1734451151711,2.266,220.64,220.52,2.2671]
[1734451151906,20.67629446,220.61,220.45,0.9072352]
[1734451152106,20.67629446,220.57,220.46,3.16]
[1734451152408,20.67629446,220.53,220.38,51.78]
[1734451152705,1.5253,220.56,220.39,3.16]
[1734451153403,1.5253,220.56,220.42,2.2681]
[1734451153600,1.5253,220.56,220.39,3.16]
[1734451154010,33.91099075,220.54,220.39,3.16]
[1734451154206,33.91099075,220.54,220.38,51.78]
[1734451154400,2.2674,220.51,220.41,2.2683]
[1734451154602,33.91099075,220.58,220.39,37.07099075]
[1734451154800,33.91099075,220.58,220.39,33.91099075]
[1734451155006,2.267,220.55,220.4,3.16]
[1734451155404,33.91099075,220.58,220.42,2.2682]
[1734451155405,2.2672,220.53,220.42,2.2682]
[1734451155605,33.91099075,220.54,220.42,2.2682]
[1734451155912,33.91099075,220.54,220.41,3.16]
[1734451156511,33.91099075,220.54,220.42,3.16]
[1734451157606,2.2673,220.52,220.42,3.16]
[1734451158007,2.2668,220.56,220.45,2.2679]
[1734451158212,2.9424,220.6,220.42,3.16]
[1734451158404,2.9424,220.6,220.43,33.91099075]
[1734451159012,2.9424,220.6,220.44,3.16]
[1734451160104,2.2667,220.57,220.44,3.16]
[1734451161014,2.267,220.54,220.45,5.4279]
[1734451161307,2.267,220.54,220.46,3.16]
[1734451161510,33.91099075,220.58,220.39,33.91099075]
[1734451161710,33.91099075,220.58,220.4,3.16]
[1734451161911,33.91099075,220.54,220.4,3.16]
[1734451162407,2.2673,220.51,220.43,2.2681]
[1734451162613,33.91099075,220.58,220.44,3.16]
[1734451162807,2.9424,220.6,220.45,3.16]
[1734451163113,2.2665,220.59,220.5,2.2674]
[1734451163308,2.9424,220.6,220.51,3.16]
[1734451163513,2.9424,220.6,220.52,3.16]
[1734451163713,2.2665,220.59,220.53,3.16]
[1734451164006,2.2665,220.59,220.54,3.16]
[1734451164812,2.2666,220.58,220.54,3.16]
[1734451165005,2.9424,220.6,220.54,3.16]
[1734451166517,2.2665,220.59,220.54,3.16]
[1734451166711,2.9424,220.6,220.54,3.16]
[1734451167311,1.5554,220.65,220.54,3.16]
[1734451167908,3.8213,220.65,220.54,3.16]
[1734451168413,2.266,220.64,220.54,2.2669]
[1734451168609,2.266,220.64,220.55,3.16]
[1734451168808,1.5554,220.65,220.55,3.16]
[1734451169417,2.2662,220.62,220.55,3.16]
[1734451170511,2.2662,220.62,220.55,5.4269]
[1734451171721,1.5554,220.65,220.55,3.16]
[1734451171921,2.2664,220.6,220.55,3.16]
[1734451172214,1.4509,220.64,220.55,3.16]
[1734451173218,1.4509,220.64,220.5,33.91099075]
[1734451173413,1.4509,220.64,220.51,3.16]
[1734451173616,35.36189075,220.64,220.45,53.3698]
[1734451173817,35.36189075,220.64,220.46,3.16]
[1734451174812,35.36189075,220.64,220.53,2.2671]
[1734451175020,35.36189075,220.64,220.53,5.4271]
[1734451175514,35.36189075,220.64,220.53,3.16]
[1734451175716,35.36189075,220.64,220.52,3.16]
[1734451175917,33.91099075,220.6,220.44,33.91099075]
[1734451176121,22.37269226,220.59,220.45,3.16]
[1734451176320,22.37269226,220.59,220.46,3.16]
[1734451176520,2.2671,220.53,220.48,2.2676]
[1734451177918,2.2671,220.53,220.48,5.4276]
[1734451178915,22.37269226,220.59,220.48,5.4276]
[1734451178916,22.37269226,220.59,220.48,3.16]
[1734451179117,2.2668,220.56,220.51,2.2673]
[1734451179324,1.5131,220.59,220.48,3.16]
[1734451179625,2.2666,220.58,220.53,2.267]
[1734451179822,1.5131,220.59,220.54,3.16]
[1734451180120,1.4509,220.64,220.58,2.2665]
[1734451180121,3.717,220.64,220.58,2.2665]
[1734451180321,1.4509,220.64,220.59,3.16]
[1734451180824,2.2662,220.62,220.59,3.16]
[1734451181624,2.2661,220.63,220.59,3.16]
[1734451181925,1.4509,220.64,220.59,3.16]
[1734451182228,7.6885,220.82,220.59,3.16]
[1734451182525,1.4642,220.72,220.59,3.16]
[1734451182728,2.2654,220.7,220.62,2.2661]
[1734451183028,2.2654,220.7,220.59,3.16]
[1734451183817,2.2654,220.7,220.64,2.2659]
[1734451184021,2.2654,220.7,220.65,3.16]
[1734451185125,2.2654,220.7,220.65,5.4258]
[1734451185825,2.2655,220.69,220.65,5.4258]
[1734451187129,2.2655,220.69,220.65,3.16]
[1734451189526,1.4642,220.72,220.65,3.16]
[1734451190029,2.2653,220.71,220.67,2.2657]
[1734451190822,1.4642,220.72,220.65,3.16]
[1734451191127,1.5875,220.76,220.65,24.01959226]
[1734451191329,1.5875,220.76,220.73,2.265]
[1734451191627,2.2646,220.78,220.74,3.16]
[1734451192029,1.5277,220.8,220.74,3.16]
[1734451192232,3.7921,220.8,220.75,2.2648]
[1734451192724,1.5277,220.8,220.77,2.2646]
[1734451192924,1.5277,220.8,220.74,3.16]
[1734451193723,20.85959226,220.77,220.69,3.16]
[1734451193924,2.2653,220.71,220.68,3.16]
[1734451194130,20.85959226,220.77,220.68,3.16]
[1734451194528,2.2653,220.71,220.68,3.16]
[1734451194930,20.85959226,220.77,220.68,0.7487]
[1734451195129,20.85959226,220.77,220.65,3.16]
[1734451195929,2.2656,220.68,220.65,3.16]
[1734451197434,2.2656,220.68,220.64,3.16]
[1734451198533,2.265,220.74,220.64,3.16]
[1734451198735,20.85959226,220.77,220.64,3.16]
[1734451199240,2.2656,220.68,220.64,3.16]
[1734451199837,2.2657,220.67,220.64,3.16]
[1734451200137,20.85959226,220.73,220.63,3.16]
[1734451200333,3.16,220.78,220.63,3.16]
[1734451200334,1.5583,220.76,220.63,3.16]
[1734451200532,1.4527,220.72,220.54,1.5429]
[1734451201430,1.4527,220.72,220.55,3.16]
[1734451201733,2.2664,220.61,220.56,2.2667]
[1734451202531,2.2664,220.6,220.55,5.4269]
[1734451203233,2.2657,220.67,220.56,2.2668]
[1734451203433,2.9907,220.66,220.56,2.2668]
[1734451206135,2.2664,220.6,220.56,2.2668]
[1734451206330,2.9907,220.66,220.55,3.16]
[1734451206730,0.67767205,220.65,220.55,3.16]
[1734451207334,2.2666,220.59,220.55,3.16]
[1734451207636,2.9907,220.66,220.55,3.16]
[1734451207844,0.6776941,220.65,220.55,3.16]
[1734451208137,0.6776941,220.65,220.5,51.84]
[1734451208332,0.67779794,220.64,220.53,3.16]
[1734451208535,0.67779794,220.64,220.47,1.5194]
[1734451208836,0.67779794,220.63,220.46,3.16]